[Event "Live Chess"]
[Site "Chess.com"]
[Date "2023.05.21"]
[Round "-"]
[White "Greenbecker"]
[Black "WilliamofOrange16th"]
[Result "0-1"]
[WhiteElo "1685"]
[BlackElo "1869"]
[TimeControl "300"]
[EndTime "4:32:10 PDT"]
[Termination "WilliamofOrange16th won by checkmate"]

1. e4 {[%clk 0:04:58.1]} 1... d6 {[%clk 0:04:58.9]} 2. d4 {[%clk 0:04:56.5]}
2... Nf6 {[%clk 0:04:57.9]} 3. Nc3 {[%clk 0:04:55]} 3... Nbd7 {[%clk 0:04:57.1]}
4. Nf3 {[%clk 0:04:54]} 4... e5 {[%clk 0:04:56.5]} 5. dxe5 {[%clk 0:04:52.5]}
5... dxe5 {[%clk 0:04:56.4]} 6. Bc4 {[%clk 0:04:49.8]} 6... Be7 {[%clk
0:04:54.7]} 7. O-O {[%clk 0:04:47.5]} 7... O-O {[%clk 0:04:53.4]} 8. Nd5 {[%clk
0:04:45.6]} 8... Nxd5 {[%clk 0:04:50.9]} 9. Bxd5 {[%clk 0:04:39.7]} 9... c6
{[%clk 0:04:50.2]} 10. Bb3 {[%clk 0:04:38.4]} 10... Qc7 {[%clk 0:04:47.2]} 11.
Be3 {[%clk 0:04:35.7]} 11... Nc5 {[%clk 0:04:45]} 12. Bxc5 {[%clk 0:04:32.4]}
12... Bxc5 {[%clk 0:04:44.9]} 13. Qe2 {[%clk 0:04:30.6]} 13... h6 {[%clk
0:04:42.8]} 14. Rad1 {[%clk 0:04:28.1]} 14... b5 {[%clk 0:04:40.8]} 15. c3
{[%clk 0:04:21]} 15... Bg4 {[%clk 0:04:38]} 16. h3 {[%clk 0:04:17.7]} 16... Bh5
{[%clk 0:04:36.6]} 17. g4 {[%clk 0:04:13.8]} 17... Bg6 {[%clk 0:04:35.8]} 18.
Nh4 {[%clk 0:04:12.8]} 18... Bh7 {[%clk 0:04:33.4]} 19. Qf3 {[%clk 0:04:07.7]}
19... a5 {[%clk 0:04:29.5]} 20. a4 {[%clk 0:03:59.2]} 20... g6 {[%clk
0:03:50.1]} 21. Qf6 {[%clk 0:03:45]} 21... Be7 {[%clk 0:03:48.8]} 22. Qf3 {[%clk
0:03:39.9]} 22... Bxh4 {[%clk 0:03:46.7]} 23. Rd3 {[%clk 0:03:31.7]} 23... Rad8
{[%clk 0:03:39.7]} 24. Rfd1 {[%clk 0:03:30.4]} 24... Rxd3 {[%clk 0:03:38.7]} 25.
Rxd3 {[%clk 0:03:28.8]} 25... Kg7 {[%clk 0:03:32.9]} 26. axb5 {[%clk 0:03:24]}
26... cxb5 {[%clk 0:03:32.8]} 27. Rd5 {[%clk 0:03:21]} 27... a4 {[%clk
0:03:29.4]} 28. Ba2 {[%clk 0:03:18.9]} 28... b4 {[%clk 0:03:12.8]} 29. c4 {[%clk
0:03:10.8]} 29... b3 {[%clk 0:03:11.3]} 30. Bb1 {[%clk 0:03:09.9]} 30... Qxc4
{[%clk 0:03:06.2]} 31. Bd3 {[%clk 0:02:59.3]} 31... Qc1+ {[%clk 0:03:03.3]} 32.
Kg2 {[%clk 0:02:58.5]} 32... Qxb2 {[%clk 0:02:55.5]} 33. Bc4 {[%clk 0:02:53.5]}
33... Qc2 {[%clk 0:02:47.3]} 34. Bd3 {[%clk 0:02:45.6]} 34... Qc3 {[%clk
0:02:43.2]} 35. Rd7 {[%clk 0:02:43.8]} 35... Bf6 {[%clk 0:02:41.3]} 36. Qe2
{[%clk 0:02:39.5]} 36... b2 {[%clk 0:02:37.5]} 37. Bb1 {[%clk 0:02:38.1]} 37...
a3 {[%clk 0:02:33.6]} 38. Ba2 {[%clk 0:02:30.9]} 38... g5 {[%clk 0:02:24.8]} 39.
Qb5 {[%clk 0:02:19]} 39... Bxe4+ {[%clk 0:02:19.8]} 40. Kh2 {[%clk 0:02:16.3]}
40... Qf3 {[%clk 0:02:15.6]} 41. Qb6 {[%clk 0:02:11]} 41... Qg2# {[%clk
0:02:14]} 0-1

[Event "Live Chess"]
[Site "Chess.com"]
[Date "2023.05.21"]
[Round "-"]
[White "CeladonFish"]
[Black "WilliWeisswurst"]
[Result "0-1"]
[WhiteElo "1096"]
[BlackElo "1775"]
[TimeControl "300"]
[EndTime "4:32:23 PDT"]
[Termination "WilliWeisswurst won by resignation"]

1. d4 {[%clk 0:04:58]} 1... d5 {[%clk 0:04:59.1]} 2. c4 {[%clk 0:04:56.5]} 2...
dxc4 {[%clk 0:04:57.7]} 3. Nc3 {[%clk 0:04:55.9]} 3... e6 {[%clk 0:04:56.9]} 4.
Bf4 {[%clk 0:04:54.9]} 4... Nf6 {[%clk 0:04:56.3]} 5. Nf3 {[%clk 0:04:53]} 5...
a6 {[%clk 0:04:53.2]} 6. e3 {[%clk 0:04:50.6]} 6... Bb4 {[%clk 0:04:52.1]} 7.
Bxc4 {[%clk 0:04:49.2]} 7... Bxc3+ {[%clk 0:04:51.1]} 8. bxc3 {[%clk 0:04:48.4]}
8... O-O {[%clk 0:04:50.7]} 9. Bd3 {[%clk 0:04:46.7]} 9... Nbd7 {[%clk 0:04:42]}
10. O-O {[%clk 0:04:44.4]} 10... b6 {[%clk 0:04:41.1]} 11. e4 {[%clk 0:04:35.7]}
11... Bb7 {[%clk 0:04:39.9]} 12. e5 {[%clk 0:04:33.6]} 12... Nd5 {[%clk
0:04:38.7]} 13. Bd2 {[%clk 0:04:24.2]} 13... h6 {[%clk 0:04:37.1]} 14. Be4
{[%clk 0:04:22]} 14... Rb8 {[%clk 0:04:33.5]} 15. Bxd5 {[%clk 0:04:20.9]} 15...
Bxd5 {[%clk 0:04:32.4]} 16. Qc2 {[%clk 0:04:12.7]} 16... c5 {[%clk 0:04:26.2]}
17. dxc5 {[%clk 0:04:04]} 17... Nxc5 {[%clk 0:04:16.2]} 18. Rfd1 {[%clk
0:03:55.2]} 18... Be4 {[%clk 0:04:04.5]} 19. Qb2 {[%clk 0:03:43.6]} 19... Nd3
{[%clk 0:03:57.6]} 20. Qc2 {[%clk 0:03:28.5]} 20... Nxf2 {[%clk 0:03:42.8]} 21.
Qc1 {[%clk 0:03:07.6]} 21... Nxd1 {[%clk 0:03:38.1]} 22. Qxd1 {[%clk 0:03:06.8]}
22... b5 {[%clk 0:03:31]} 23. Qe2 {[%clk 0:03:00.5]} 23... Bxf3 {[%clk
0:03:22.8]} 24. gxf3 {[%clk 0:02:59.3]} 24... Qb6+ {[%clk 0:03:19.9]} 25. Kf1
{[%clk 0:02:57.7]} 25... Rfd8 {[%clk 0:03:15.4]} 26. Qg2 {[%clk 0:02:54.3]}
26... Kh7 {[%clk 0:02:51]} 0-1

[Event "Live Chess"]
[Site "Chess.com"]
[Date "2023.05.21"]
[Round "-"]
[White "McSlash1"]
[Black "JoeRoot66"]
[Result "0-1"]
[WhiteElo "2000"]
[BlackElo "1916"]
[TimeControl "300"]
[EndTime "4:32:26 PDT"]
[Termination "JoeRoot66 won by resignation"]

1. e4 {[%clk 0:04:59.8]} 1... c6 {[%clk 0:04:59.3]} 2. d4 {[%clk 0:04:58.4]}
2... d5 {[%clk 0:04:59.2]} 3. Nc3 {[%clk 0:04:57.7]} 3... dxe4 {[%clk
0:04:58.6]} 4. Nxe4 {[%clk 0:04:57.6]} 4... Nf6 {[%clk 0:04:58.2]} 5. Nxf6+
{[%clk 0:04:57.2]} 5... exf6 {[%clk 0:04:58.1]} 6. Nf3 {[%clk 0:04:57.1]} 6...
Bd6 {[%clk 0:04:58]} 7. Bd3 {[%clk 0:04:56.7]} 7... O-O {[%clk 0:04:57.9]} 8.
O-O {[%clk 0:04:56.6]} 8... Re8 {[%clk 0:04:57.5]} 9. Re1 {[%clk 0:04:55.9]}
9... Nd7 {[%clk 0:04:56.2]} 10. h3 {[%clk 0:04:53.2]} 10... Nf8 {[%clk
0:04:55.5]} 11. c4 {[%clk 0:04:51.5]} 11... Rxe1+ {[%clk 0:04:54.4]} 12. Qxe1
{[%clk 0:04:51.4]} 12... Be6 {[%clk 0:04:52.2]} 13. b3 {[%clk 0:04:44.3]} 13...
Qd7 {[%clk 0:04:51]} 14. Bb2 {[%clk 0:04:41.6]} 14... Re8 {[%clk 0:04:49.8]} 15.
Qc3 {[%clk 0:04:40.8]} 15... Ng6 {[%clk 0:04:39.3]} 16. Rd1 {[%clk 0:04:37.6]}
16... b6 {[%clk 0:04:30.6]} 17. Bc2 {[%clk 0:04:36.8]} 17... a5 {[%clk
0:04:24.8]} 18. c5 {[%clk 0:04:36.2]} 18... Bc7 {[%clk 0:04:12.2]} 19. a4 {[%clk
0:04:28.7]} 19... Bd5 {[%clk 0:04:10.4]} 20. Bc1 {[%clk 0:04:14.8]} 20... Bf4
{[%clk 0:03:56.8]} 21. cxb6 {[%clk 0:04:07.4]} 21... Bxc1 {[%clk 0:03:55.2]} 22.
Rxc1 {[%clk 0:04:07.3]} 22... Nf4 {[%clk 0:03:54.1]} 23. Bd1 {[%clk 0:04:00.1]}
23... Qd6 {[%clk 0:03:31.1]} 24. Qc5 {[%clk 0:03:47.4]} 24... Qb8 {[%clk
0:03:19.4]} 25. Qxa5 {[%clk 0:03:42.1]} 25... Nd3 {[%clk 0:03:14]} 26. Rb1
{[%clk 0:03:32.1]} 26... Be4 {[%clk 0:02:46.7]} 27. Ra1 {[%clk 0:03:21.6]} 27...
Qd8 {[%clk 0:02:35.3]} 28. Qa7 {[%clk 0:02:47.2]} 28... Bxf3 {[%clk 0:02:27.2]}
29. Bxf3 {[%clk 0:02:47.1]} 29... Qxd4 {[%clk 0:02:25.2]} 30. Rd1 {[%clk
0:02:40]} 30... Qxf2+ {[%clk 0:02:18.9]} 31. Kh2 {[%clk 0:02:35.6]} 31... Ne5
{[%clk 0:02:10]} 32. b7 {[%clk 0:02:02.5]} 32... Nxf3+ {[%clk 0:02:04.8]} 33.
Kh1 {[%clk 0:01:58.7]} 33... Re1+ {[%clk 0:02:03.4]} 34. Rxe1 {[%clk 0:01:56.7]}
34... Qxe1+ {[%clk 0:02:03.3]} 0-1

[Event "Live Chess"]
[Site "Chess.com"]
[Date "2023.05.21"]
[Round "-"]
[White "stevefairhurst"]
[Black "FailsGambits"]
[Result "0-1"]
[WhiteElo "585"]
[BlackElo "1335"]
[TimeControl "300"]
[EndTime "4:32:44 PDT"]
[Termination "FailsGambits won by resignation"]

1. e4 {[%clk 0:04:59.3]} 1... e5 {[%clk 0:04:58.7]} 2. Nf3 {[%clk 0:04:59]} 2...
Nc6 {[%clk 0:04:56.9]} 3. Bc4 {[%clk 0:04:57.8]} 3... Be7 {[%clk 0:04:55.2]} 4.
d3 {[%clk 0:04:54.1]} 4... Nf6 {[%clk 0:04:51.2]} 5. Ng5 {[%clk 0:04:52.4]} 5...
O-O {[%clk 0:04:49.7]} 6. Qf3 {[%clk 0:04:46.1]} 6... h6 {[%clk 0:04:47.4]} 7.
Nh3 {[%clk 0:04:41.9]} 7... d6 {[%clk 0:04:38.7]} 8. Qg3 {[%clk 0:04:39.7]} 8...
Nd4 {[%clk 0:04:22.8]} 9. Bb3 {[%clk 0:04:33.5]} 9... Be6 {[%clk 0:04:20.4]} 10.
Bxh6 {[%clk 0:04:30.2]} 10... Nh5 {[%clk 0:04:02.6]} 11. Bxe6 {[%clk 0:04:08.2]}
11... Nxg3 {[%clk 0:03:57.2]} 12. fxg3 {[%clk 0:04:01.2]} 12... Nxc2+ {[%clk
0:03:51.4]} 13. Kd2 {[%clk 0:03:59.4]} 13... Nxa1 {[%clk 0:03:50.6]} 14. Rf1
{[%clk 0:03:56.9]} 14... fxe6 {[%clk 0:03:49.1]} 15. Rxf8+ {[%clk 0:03:54.9]}
15... Qxf8 {[%clk 0:03:48.6]} 16. Nc3 {[%clk 0:03:52.8]} 16... gxh6 {[%clk
0:03:43]} 17. Nb5 {[%clk 0:03:51.3]} 17... Qc8 {[%clk 0:03:25.8]} 18. g4 {[%clk
0:03:43.4]} 18... a6 {[%clk 0:03:24.9]} 19. Nc3 {[%clk 0:03:38.7]} 19... Bg5+
{[%clk 0:03:24.5]} 20. Nxg5 {[%clk 0:03:35.5]} 20... hxg5 {[%clk 0:03:24.4]} 21.
h3 {[%clk 0:03:33.9]} 21... Qd7 {[%clk 0:03:20.8]} 22. Ne2 {[%clk 0:03:32.5]}
22... Qh7 {[%clk 0:03:20.1]} 23. Ng3 {[%clk 0:03:29.5]} 23... Qh4 {[%clk
0:03:17.2]} 24. Nh5 {[%clk 0:03:27]} 24... Qf2+ {[%clk 0:03:13.9]} 25. Kd1
{[%clk 0:03:24.9]} 25... Qxg2 {[%clk 0:03:12.9]} 26. Nf6+ {[%clk 0:03:22.2]}
26... Kf7 {[%clk 0:03:05.7]} 27. Nd7 {[%clk 0:03:13]} 27... Rd8 {[%clk
0:03:03.1]} 28. Nxe5+ {[%clk 0:03:09.1]} 28... dxe5 {[%clk 0:03:02.1]} 0-1

[Event "Live Chess"]
[Site "Chess.com"]
[Date "2023.05.21"]
[Round "-"]
[White "Nakula1000"]
[Black "Ian-Morley"]
[Result "1-0"]
[WhiteElo "684"]
[BlackElo "1042"]
[TimeControl "300"]
[EndTime "4:32:53 PDT"]
[Termination "Nakula1000 won by checkmate"]

1. e4 {[%clk 0:04:56.5]} 1... e5 {[%clk 0:04:58.7]} 2. Nf3 {[%clk 0:04:51]} 2...
Nc6 {[%clk 0:04:57.4]} 3. Nc3 {[%clk 0:04:43.8]} 3... d5 {[%clk 0:04:55.4]} 4.
Nxd5 {[%clk 0:04:41.8]} 4... Nd4 {[%clk 0:04:52.2]} 5. Nxe5 {[%clk 0:04:40.3]}
5... c6 {[%clk 0:04:47.6]} 6. Ne3 {[%clk 0:04:38.2]} 6... Bd6 {[%clk 0:04:42.3]}
7. N5c4 {[%clk 0:04:35.9]} 7... Bf4 {[%clk 0:04:37.7]} 8. c3 {[%clk 0:04:33]}
8... Bxe3 {[%clk 0:04:36.8]} 9. Nxe3 {[%clk 0:04:30.7]} 9... Ne7 {[%clk
0:04:30]} 10. cxd4 {[%clk 0:04:28.6]} 10... Qxd4 {[%clk 0:04:27.5]} 11. d3
{[%clk 0:04:25.5]} 11... O-O {[%clk 0:04:23.1]} 12. Qb3 {[%clk 0:04:22.6]} 12...
b5 {[%clk 0:04:13]} 13. Qc3 {[%clk 0:04:20.5]} 13... Qb6 {[%clk 0:04:09.5]} 14.
h4 {[%clk 0:04:18.4]} 14... Bb7 {[%clk 0:04:08.3]} 15. Bd2 {[%clk 0:04:14.6]}
15... a5 {[%clk 0:04:04.8]} 16. h5 {[%clk 0:04:12.4]} 16... a4 {[%clk
0:04:02.9]} 17. h6 {[%clk 0:04:09.8]} 17... g6 {[%clk 0:03:59.9]} 18. Qg7#
{[%clk 0:04:08]} 1-0

[Event "Live Chess"]
[Site "Chess.com"]
[Date "2023.05.21"]
[Round "-"]
[White "Swetha_Queen"]
[Black "Biranidun"]
[Result "0-1"]
[WhiteElo "348"]
[BlackElo "2533"]
[TimeControl "300"]
[EndTime "4:33:00 PDT"]
[Termination "Biranidun won by checkmate"]

1. e4 {[%clk 0:04:56]} 1... c5 {[%clk 0:04:59.2]} 2. Nc3 {[%clk 0:04:52.3]} 2...
g6 {[%clk 0:04:57.6]} 3. Nd5 {[%clk 0:04:38.5]} 3... e6 {[%clk 0:04:56.3]} 4.
Nf6+ {[%clk 0:04:35.7]} 4... Nxf6 {[%clk 0:04:55.1]} 5. d3 {[%clk 0:04:32]} 5...
Bg7 {[%clk 0:04:53.5]} 6. Bg5 {[%clk 0:04:28.5]} 6... h6 {[%clk 0:04:51.4]} 7.
Bxf6 {[%clk 0:04:25.7]} 7... Qxf6 {[%clk 0:04:51.3]} 8. Ne2 {[%clk 0:04:22.2]}
8... Qxb2 {[%clk 0:04:50.3]} 9. Kd2 {[%clk 0:04:16.3]} 9... Qxa1 {[%clk
0:04:48.9]} 10. Qxa1 {[%clk 0:04:12.7]} 10... Bxa1 {[%clk 0:04:48.8]} 11. Ng3
{[%clk 0:04:08.5]} 11... Bd4 {[%clk 0:04:47.2]} 12. f3 {[%clk 0:04:05.3]} 12...
Nc6 {[%clk 0:04:46.1]} 13. Be2 {[%clk 0:04:00.8]} 13... h5 {[%clk 0:04:45.3]}
14. f4 {[%clk 0:03:58.4]} 14... h4 {[%clk 0:04:44.5]} 15. Nf1 {[%clk 0:03:51.9]}
15... g5 {[%clk 0:04:43.5]} 16. fxg5 {[%clk 0:03:45]} 16... Rg8 {[%clk
0:04:42.7]} 17. g3 {[%clk 0:03:32.9]} 17... hxg3 {[%clk 0:04:41.1]} 18. hxg3
{[%clk 0:03:30.3]} 18... Rxg5 {[%clk 0:04:40.7]} 19. Rh8+ {[%clk 0:03:26.8]}
19... Bxh8 {[%clk 0:04:39.3]} 20. Ne3 {[%clk 0:03:22.4]} 20... Rxg3 {[%clk
0:04:38.1]} 21. Nf1 {[%clk 0:03:16.3]} 21... Rg2 {[%clk 0:04:37]} 22. Ne3 {[%clk
0:03:13.4]} 22... Rh2 {[%clk 0:04:36.2]} 23. Ng4 {[%clk 0:03:09]} 23... Bc3+
{[%clk 0:04:34.6]} 24. Kxc3 {[%clk 0:03:05.3]} 24... Rxe2 {[%clk 0:04:34]} 25.
Nf6+ {[%clk 0:02:55.9]} 25... Ke7 {[%clk 0:04:33.2]} 26. Ng8+ {[%clk 0:02:50.9]}
26... Kf8 {[%clk 0:04:32.4]} 27. Nf6 {[%clk 0:02:47.4]} 27... Nd4 {[%clk
0:04:32.3]} 28. Nh7+ {[%clk 0:02:44.1]} 28... Kg7 {[%clk 0:04:31.2]} 29. Ng5
{[%clk 0:02:39.6]} 29... Rxc2# {[%clk 0:04:31.1]} 0-1

[Event "Live Chess"]
[Site "Chess.com"]
[Date "2023.05.21"]
[Round "-"]
[White "hturner40"]
[Black "Bunny55"]
[Result "1/2-1/2"]
[WhiteElo "1779"]
[BlackElo "1014"]
[TimeControl "300"]
[EndTime "4:33:09 PDT"]
[Termination "Game drawn by repetition"]

1. Nf3 {[%clk 0:04:57.8]} 1... Nf6 {[%clk 0:04:58.1]} 2. g3 {[%clk 0:04:56.2]}
2... g6 {[%clk 0:04:56.8]} 3. Bg2 {[%clk 0:04:55.3]} 3... Bg7 {[%clk 0:04:55.8]}
4. O-O {[%clk 0:04:53.9]} 4... O-O {[%clk 0:04:54.6]} 5. c4 {[%clk 0:04:53]}
5... Nc6 {[%clk 0:04:53.2]} 6. d4 {[%clk 0:04:50.2]} 6... Qe8 {[%clk 0:04:35.7]}
7. d5 {[%clk 0:04:38.9]} 7... Nd8 {[%clk 0:04:33.9]} 8. Nc3 {[%clk 0:04:35]}
8... d6 {[%clk 0:04:32.2]} 9. e4 {[%clk 0:04:24]} 9... e5 {[%clk 0:04:26.4]} 10.
Nd2 {[%clk 0:04:11]} 10... h6 {[%clk 0:04:17.9]} 11. b4 {[%clk 0:04:09.2]} 11...
Nh7 {[%clk 0:04:16.6]} 12. c5 {[%clk 0:04:06]} 12... f5 {[%clk 0:04:13.7]} 13.
f3 {[%clk 0:04:04.6]} 13... f4 {[%clk 0:04:03.8]} 14. Nc4 {[%clk 0:03:56.8]}
14... g5 {[%clk 0:03:55.8]} 15. cxd6 {[%clk 0:03:52.2]} 15... cxd6 {[%clk
0:03:53.1]} 16. Nxd6 {[%clk 0:03:50.9]} 16... Qd7 {[%clk 0:03:43.2]} 17. Nc4
{[%clk 0:03:41]} 17... b5 {[%clk 0:03:33.6]} 18. Na5 {[%clk 0:03:30]} 18... Nf6
{[%clk 0:03:14]} 19. Nb3 {[%clk 0:03:02.3]} 19... a6 {[%clk 0:03:11.4]} 20. Nc5
{[%clk 0:03:01]} 20... Qa7 {[%clk 0:03:06]} 21. Kh1 {[%clk 0:02:43.9]} 21... Nd7
{[%clk 0:03:03.9]} 22. Ne6 {[%clk 0:02:21.2]} 22... Nxe6 {[%clk 0:02:58]} 23.
dxe6 {[%clk 0:02:20.1]} 23... Nf6 {[%clk 0:02:54]} 24. Nd5 {[%clk 0:02:18]}
24... Nxd5 {[%clk 0:02:52]} 25. exd5 {[%clk 0:02:16.5]} 25... Bf6 {[%clk
0:02:47.3]} 26. Qc2 {[%clk 0:02:07]} 26... Bb7 {[%clk 0:02:41]} 27. Qg6+ {[%clk
0:02:03]} 27... Bg7 {[%clk 0:02:38]} 28. e7 {[%clk 0:01:49.1]} 28... Rfe8 {[%clk
0:02:26.1]} 29. d6 {[%clk 0:01:48]} 29... Bc6 {[%clk 0:02:17.1]} 30. Bh3 {[%clk
0:01:45.2]} 30... Bxf3+ {[%clk 0:02:11.3]} 31. Rxf3 {[%clk 0:01:38.2]} 31... Qd4
{[%clk 0:02:07.8]} 32. Bf5 {[%clk 0:00:48.9]} 32... Qd1+ {[%clk 0:01:56.7]} 33.
Kg2 {[%clk 0:00:47.2]} 33... Qe2+ {[%clk 0:01:30.7]} 34. Rf2 {[%clk 0:00:42.7]}
34... f3+ {[%clk 0:01:25.5]} 35. Kh3 {[%clk 0:00:37.4]} 35... Qxf2 {[%clk
0:01:05.3]} 36. Qh7+ {[%clk 0:00:34.9]} 36... Kf7 {[%clk 0:01:01.4]} 37. Qg6+
{[%clk 0:00:33.4]} 37... Kg8 {[%clk 0:00:52.7]} 38. Qh7+ {[%clk 0:00:30.3]}
38... Kf7 {[%clk 0:00:50.8]} 39. Qg6+ {[%clk 0:00:21.2]} 39... Kg8 {[%clk
0:00:49.2]} 1/2-1/2

[Event "Live Chess"]
[Site "Chess.com"]
[Date "2023.05.21"]
[Round "-"]
[White "JanMur7"]
[Black "elephantgerrald"]
[Result "1-0"]
[WhiteElo "1989"]
[BlackElo "686"]
[TimeControl "300"]
[EndTime "4:33:09 PDT"]
[Termination "JanMur7 won by checkmate"]

1. e4 {[%clk 0:04:58.3]} 1... e5 {[%clk 0:04:58.7]} 2. Nf3 {[%clk 0:04:57.5]}
2... Nf6 {[%clk 0:04:56.2]} 3. Nc3 {[%clk 0:04:57]} 3... Nc6 {[%clk 0:04:54.6]}
4. Nxe5 {[%clk 0:04:56.5]} 4... Nxe5 {[%clk 0:04:53.5]} 5. d4 {[%clk 0:04:56]}
5... Nc6 {[%clk 0:04:48.8]} 6. d5 {[%clk 0:04:54.5]} 6... Ne5 {[%clk 0:04:45.9]}
7. f4 {[%clk 0:04:53.9]} 7... Ng6 {[%clk 0:04:40.8]} 8. e5 {[%clk 0:04:52.9]}
8... Ng8 {[%clk 0:04:33.5]} 9. Bd3 {[%clk 0:04:47.7]} 9... Qh4+ {[%clk
0:04:25.3]} 10. g3 {[%clk 0:04:46.4]} 10... Qh3 {[%clk 0:04:15.2]} 11. Bf1
{[%clk 0:04:34.1]} 11... Qh6 {[%clk 0:04:01.6]} 12. f5 {[%clk 0:04:27.8]} 12...
Qxc1 {[%clk 0:03:54.1]} 13. Rxc1 {[%clk 0:04:23.8]} 13... Nxe5 {[%clk 0:03:53]}
14. Nb5 {[%clk 0:04:21.8]} 14... Bd6 {[%clk 0:03:41.8]} 15. c4 {[%clk
0:04:13.3]} 15... Bb4+ {[%clk 0:03:37.1]} 16. Kf2 {[%clk 0:04:08.2]} 16... Bc5+
{[%clk 0:03:33.2]} 17. Kg2 {[%clk 0:04:05.9]} 17... Nf6 {[%clk 0:03:26.8]} 18.
Nxc7+ {[%clk 0:04:03]} 18... Kd8 {[%clk 0:03:24.6]} 19. Nxa8 {[%clk 0:04:02.9]}
19... Nfg4 {[%clk 0:03:23.3]} 20. Qa4 {[%clk 0:03:57.6]} 20... Ne3+ {[%clk
0:03:20.8]} 21. Kh3 {[%clk 0:03:48.8]} 21... d6 {[%clk 0:03:16.7]} 22. Be2
{[%clk 0:03:40]} 22... g5 {[%clk 0:03:11.1]} 23. g4 {[%clk 0:03:37.6]} 23... h5
{[%clk 0:03:03.3]} 24. gxh5 {[%clk 0:03:22.5]} 24... Bxf5+ {[%clk 0:03:00.8]}
25. Kg3 {[%clk 0:03:18.5]} 25... Bd7 {[%clk 0:02:53.2]} 26. Qa5+ {[%clk
0:03:15.4]} 26... b6 {[%clk 0:02:51]} 27. Qxa7 {[%clk 0:03:12.9]} 27... f5
{[%clk 0:02:48.9]} 28. Qb8+ {[%clk 0:02:50.8]} 28... Bc8 {[%clk 0:02:46.7]} 29.
Qc7+ {[%clk 0:02:47.5]} 29... Ke8 {[%clk 0:02:37.4]} 30. Qxc8+ {[%clk
0:02:47.4]} 30... Ke7 {[%clk 0:02:35]} 31. Qxh8 {[%clk 0:02:44.1]} 31... f4+
{[%clk 0:02:33.5]} 32. Kf2 {[%clk 0:02:36.7]} 32... Nf5+ {[%clk 0:02:31.9]} 33.
Ke1 {[%clk 0:02:33.3]} 33... f3 {[%clk 0:02:16.2]} 34. Qxe5+ {[%clk 0:02:23.7]}
34... dxe5 {[%clk 0:02:14.6]} 35. Bxf3 {[%clk 0:02:22.9]} 35... Ne3 {[%clk
0:02:09.5]} 36. Ke2 {[%clk 0:02:19.5]} 36... Kf7 {[%clk 0:01:57.8]} 37. d6
{[%clk 0:02:12.1]} 37... Ke6 {[%clk 0:01:54.3]} 38. Rhd1 {[%clk 0:02:07.1]}
38... Bxd6 {[%clk 0:01:50.6]} 39. Rxd6+ {[%clk 0:02:03.5]} 39... Kxd6 {[%clk
0:01:49.6]} 40. Kxe3 {[%clk 0:02:03.4]} 40... Ke7 {[%clk 0:01:48.2]} 41. h6
{[%clk 0:02:00.9]} 41... Kf7 {[%clk 0:01:47.3]} 42. h7 {[%clk 0:02:00.8]} 42...
Kg7 {[%clk 0:01:45.9]} 43. Be4 {[%clk 0:02:00.7]} 43... Kh8 {[%clk 0:01:44.3]}
44. Rd1 {[%clk 0:02:00.6]} 44... g4 {[%clk 0:01:42.5]} 45. Rd7 {[%clk
0:02:00.5]} 45... g3 {[%clk 0:01:38.9]} 46. Nc7 {[%clk 0:01:44.8]} 46... gxh2
{[%clk 0:01:37.1]} 47. Ne6 {[%clk 0:01:42.1]} 47... h1=Q {[%clk 0:01:31.6]} 48.
Bxh1 {[%clk 0:01:40.1]} 48... e4 {[%clk 0:01:26.5]} 49. Nf8 {[%clk 0:01:38.6]}
49... b5 {[%clk 0:01:24.4]} 50. Ng6# {[%clk 0:01:38.5]} 1-0

[Event "Live Chess"]
[Site "Chess.com"]
[Date "2023.05.21"]
[Round "-"]
[White "bedsdrout"]
[Black "PiotrD11"]
[Result "0-1"]
[WhiteElo "569"]
[BlackElo "1370"]
[TimeControl "300"]
[EndTime "4:33:22 PDT"]
[Termination "PiotrD11 won by resignation"]

1. e4 {[%clk 0:04:56.7]} 1... d5 {[%clk 0:04:59.9]} 2. Qh5 {[%clk 0:04:52.4]}
2... dxe4 {[%clk 0:04:56.1]} 3. Bc4 {[%clk 0:04:48.4]} 3... e6 {[%clk
0:04:53.2]} 4. d4 {[%clk 0:04:34]} 4... Nf6 {[%clk 0:04:52.7]} 5. Qe5 {[%clk
0:04:25.1]} 5... Nc6 {[%clk 0:04:46.7]} 6. Qg3 {[%clk 0:04:19.9]} 6... Qxd4
{[%clk 0:04:40.8]} 7. Nc3 {[%clk 0:03:58]} 7... Bd6 {[%clk 0:04:34.3]} 8. Be3
{[%clk 0:03:52]} 8... Bxg3 {[%clk 0:04:16.3]} 9. Bxd4 {[%clk 0:03:47.7]} 9...
Nxd4 {[%clk 0:04:16.2]} 10. Bb5+ {[%clk 0:03:42]} 10... c6 {[%clk 0:04:12.7]}
11. Ba4 {[%clk 0:03:39.8]} 11... Bd6 {[%clk 0:03:55.9]} 12. O-O-O {[%clk
0:03:27.7]} 12... O-O {[%clk 0:03:48.9]} 13. Nxe4 {[%clk 0:03:16.1]} 13... Nxe4
{[%clk 0:03:07.8]} 14. c3 {[%clk 0:03:03.5]} 14... Bf4+ {[%clk 0:02:55.9]} 15.
Kb1 {[%clk 0:02:55.4]} 15... Nb5 {[%clk 0:02:52.4]} 16. Bc2 {[%clk 0:02:41.3]}
16... Nxf2 {[%clk 0:02:43.8]} 17. Nf3 {[%clk 0:02:35.8]} 17... Nxh1 {[%clk
0:02:38.2]} 18. g3 {[%clk 0:02:13.9]} 18... Nf2 {[%clk 0:02:35.4]} 19. Rd2
{[%clk 0:02:10.2]} 19... Bxd2 {[%clk 0:02:33.9]} 20. a3 {[%clk 0:01:38.6]} 20...
Bxc3 {[%clk 0:02:19.9]} 21. bxc3 {[%clk 0:01:33.5]} 21... Nxc3+ {[%clk
0:02:19.8]} 22. Kb2 {[%clk 0:01:25.2]} 22... Nfd1+ {[%clk 0:02:11.9]} 23. Kc1
{[%clk 0:00:47.4]} 23... Ne3 {[%clk 0:02:06.4]} 0-1